bitfinex/quotes_BTCUSD_20250825
["timestamp","ask_amount","ask_price","bid_price","bid_amount"]
[1756140112195,1.19105392,113000.0,112990.0,0.38291581]
[1756140112870,1.18907392,113000.0,112990.0,0.38291581]
[1756140114302,0.38946276,113000.0,112990.0,0.38291581]
[1756140115002,1.18907392,113000.0,112990.0,0.38291581]
[1756140115217,1.19104392,113000.0,112990.0,0.38291581]
[1756140115866,1.19104392,113000.0,112990.0,0.23211581]
[1756140116092,1.19104392,113000.0,112990.0,0.37968581]
[1756140116315,1.19104392,113000.0,112990.0,0.38267581]
[1756140120014,1.18907392,113000.0,112990.0,0.38267581]
[1756140120221,1.19105392,113000.0,112990.0,0.38267581]
[1756140120426,1.18907392,113000.0,112990.0,0.38267581]
[1756140121571,1.19105392,113000.0,112990.0,0.38267581]
[1756140122245,1.19105392,113000.0,112990.0,0.23191581]
[1756140122509,1.99363508,113000.0,112990.0,0.35834281]
[1756140123394,2.14435508,113000.0,112990.0,0.35834281]
[1756140124049,2.1305034,113000.0,112990.0,0.35834281]
[1756140124798,1.9797834,113000.0,112990.0,0.35838281]
[1756140125046,6.0814594,113000.0,112990.0,0.20766281]
[1756140125263,6.0814594,113000.0,112990.0,0.35838281]
[1756140125705,6.0814594,113000.0,112990.0,0.32976681]
[1756140125922,6.0814594,113000.0,112990.0,0.32776681]
[1756140126107,6.0814594,113000.0,112990.0,0.32876681]
[1756140126358,6.0814594,113000.0,112990.0,0.32976681]
[1756140127133,6.0814594,113000.0,112990.0,0.17904681]
[1756140127379,6.09531201,113000.0,112990.0,0.32876681]
[1756140127643,5.94459201,113000.0,112990.0,0.32976681]
[1756140127878,6.09527201,113000.0,112990.0,0.32976681]
[1756140129344,5.94459201,113000.0,112990.0,0.32976681]
[1756140129598,6.09527201,113000.0,112990.0,0.32976681]
[1756140130942,6.11187911,113000.0,112990.0,0.32976681]
[1756140131144,6.11187911,113000.0,112990.0,0.17904681]
[1756140131381,6.11187911,113000.0,112990.0,0.32972681]
[1756140131976,6.0980265,113000.0,112990.0,0.32972681]
[1756140132605,6.0980265,113000.0,112990.0,0.00204]
[1756140132821,6.0980265,113000.0,112990.0,0.32972681]
[1756140133884,6.09802773,113000.0,112990.0,0.32972681]
[1756140135274,5.15861944,113000.0,112990.0,0.39320784]
[1756140135489,5.15663944,113000.0,112990.0,0.39320784]
[1756140135921,5.15861944,113000.0,112990.0,0.33484681]
[1756140136558,5.15663944,113000.0,112990.0,0.33484681]
[1756140136952,5.15861944,113000.0,112990.0,0.33484681]
[1756140137571,4.34041995,113000.0,112990.0,0.33484681]
[1756140137777,5.14003111,113000.0,112990.0,0.33484681]
[1756140137983,5.14003111,113000.0,112990.0,0.2528119]
[1756140138433,5.14003111,113000.0,112990.0,0.4034519]
[1756140139686,5.14003111,113000.0,112990.0,0.2528119]
[1756140139904,5.14003111,113000.0,112990.0,0.4034519]
[1756140140141,5.14003111,113000.0,112990.0,0.18117681]
[1756140140351,5.14003111,113000.0,112990.0,0.32968681]
[1756140142910,5.14201111,113000.0,112990.0,0.32968681]
[1756140143562,5.14201111,113000.0,112990.0,0.17904681]
[1756140144023,6.11185308,113000.0,112990.0,0.17904681]
[1756140144551,6.1118535,113000.0,112990.0,0.17904681]
[1756140144804,5.30926234,113000.0,112990.0,0.17904681]
[1756140145644,5.15862234,113000.0,112990.0,0.17904681]
[1756140145854,5.30922234,113000.0,112990.0,0.17904681]
[1756140146071,5.15862234,113000.0,112990.0,0.17904681]
[1756140146296,5.30922234,113000.0,112990.0,0.17904681]
[1756140146921,5.30922234,113000.0,112990.0,0.32964681]
[1756140147130,5.31220234,113000.0,112990.0,0.32964681]
[1756140147343,6.1118135,113000.0,112990.0,0.32964681]
[1756140148819,6.1118135,113000.0,112990.0,0.00204]
[1756140149200,6.1118135,113000.0,112990.0,0.17904681]
[1756140149389,6.1118135,113000.0,112990.0,0.00204]
[1756140150212,4.50763118,113000.0,112990.0,0.18406681]
[1756140150482,5.30724234,113000.0,112990.0,0.23611384]
[1756140150688,5.30922234,113000.0,112990.0,0.18110681]
[1756140150905,5.31219234,113000.0,112990.0,0.17904681]
[1756140151132,6.1118035,113000.0,112990.0,0.00204]
[1756140151382,6.19867315,113000.0,112990.0,0.00204]
[1756140151739,6.19867315,113000.0,112990.0,0.17904681]
[1756140152111,6.18482028,113000.0,112990.0,0.00204]
[1756140152559,6.27494178,113000.0,112990.0,0.00204]
[1756140152766,6.30156578,113000.0,112990.0,0.00204]
[1756140153168,6.28495455,113000.0,112990.0,0.00204]
[1756140153388,6.30988346,113000.0,112990.0,0.00204]
[1756140153609,6.42758035,113000.0,112990.0,4e-05]
[1756140153823,6.48428213,113000.0,112990.0,4e-05]
[1756140154037,6.48224213,113000.0,112990.0,4e-05]
[1756140154246,5.99168213,113000.0,112990.0,4e-05]
[1756140154471,6.14424213,113000.0,112990.0,4e-05]
[1756140154684,6.14524213,113000.0,112990.0,4e-05]
[1756140154911,6.05837248,113000.0,112990.0,4e-05]
[1756140156207,6.3983676,113000.0,112990.0,4e-05]
[1756140156456,6.41222286,113000.0,112990.0,4e-05]
[1756140156674,6.40391942,113000.0,112990.0,4e-05]
[1756140156904,6.05891925,113000.0,112990.0,4e-05]
[1756140157123,6.3864704,113000.0,112990.0,4e-05]
[1756140158716,6.41531673,113000.0,112990.0,4e-05]
[1756140158946,6.42361839,113000.0,112990.0,4e-05]
[1756140159658,6.45578626,113000.0,112990.0,4e-05]
[1756140160073,6.4489712,113000.0,112990.0,4e-05]
[1756140160352,6.48113907,113000.0,112990.0,4e-05]
[1756140160785,6.4489712,113000.0,112990.0,4e-05]
[1756140161486,7.28075023,113000.0,112990.0,4e-05]
[1756140161963,7.24858236,113000.0,112990.0,4e-05]
[1756140162202,7.23019023,113000.0,112990.0,4e-05]
[1756140162487,7.34858236,113000.0,112990.0,4e-05]
[1756140162712,7.21633497,113000.0,112990.0,4e-05]
[1756140162930,7.36683899,113000.0,112990.0,4e-05]
[1756140163362,7.36483899,113000.0,112990.0,4e-05]
[1756140163582,7.36983899,113000.0,112990.0,4e-05]
[1756140163809,7.3698368,113000.0,112990.0,4e-05]
[1756140164023,7.3688368,113000.0,112990.0,4e-05]
[1756140164267,7.39568888,113000.0,112990.0,4e-05]
[1756140164964,7.24512888,113000.0,112990.0,4e-05]
[1756140165186,7.36352101,113000.0,112990.0,4e-05]
[1756140165630,7.37737829,113000.0,112990.0,4e-05]
[1756140167186,7.37733829,113000.0,112990.0,4e-05]
[1756140169439,7.37732505,113000.0,112990.0,4e-05]
[1756140169656,7.37731669,113000.0,112990.0,4e-05]
[1756140170858,7.22679669,113000.0,112990.0,4e-05]
[1756140171063,7.37731669,113000.0,112990.0,4e-05]
[1756140171696,7.47064669,113000.0,112990.0,4e-05]
[1756140172355,7.45678941,113000.0,112990.0,4e-05]
[1756140172580,7.48908404,113000.0,112990.0,4e-05]
[1756140172802,7.4890538,113000.0,112990.0,4e-05]
[1756140173018,0.17703815,112970.0,112960.0,0.07110163]
[1756140173233,6.32184932,112970.0,112960.0,0.07110163]
[1756140173472,6.35414395,112970.0,112960.0,0.07110163]
[1756140173892,6.39447595,112970.0,112960.0,0.07110163]
[1756140174341,6.39447595,112970.0,112960.0,0.0715816]
[1756140174574,6.4843056,112970.0,112960.0,0.00047997]
[1756140174795,5.00705225,112970.0,112960.0,0.00047997]
[1756140175009,6.6109396,112970.0,112960.0,0.00047997]
[1756140175473,6.6119396,112970.0,112960.0,0.00047997]
[1756140176109,6.52506995,112970.0,112960.0,0.00047997]
[1756140176289,6.5409301,112970.0,112960.0,0.00047997]
[1756140176525,6.5389301,112970.0,112960.0,0.00047997]
[1756140176954,6.5399701,112970.0,112960.0,0.00047997]
[1756140177557,6.5389701,112970.0,112960.0,0.00047997]
[1756140177764,6.5419701,112970.0,112960.0,0.00047997]
[1756140177993,6.61729907,112970.0,112960.0,0.00047997]
[1756140178174,6.62026907,112970.0,112960.0,0.00047997]
[1756140179475,6.58500444,112970.0,112960.0,0.00047997]
[1756140179948,6.62026907,112970.0,112960.0,0.00047997]
[1756140180160,6.58797444,112970.0,112960.0,0.00047997]
[1756140180368,6.60408686,112970.0,112960.0,0.00047997]
[1756140180802,6.42676789,112970.0,112960.0,0.00567997]
[1756140181006,6.40768547,112970.0,112960.0,0.00567997]
[1756140181348,6.42677206,112970.0,112960.0,0.00567997]
[1756140181557,6.42678643,112970.0,112960.0,0.00567997]
[1756140182255,6.43507256,112970.0,112960.0,0.00567997]
[1756140182454,6.52194221,112970.0,112960.0,0.00567997]
[1756140183281,6.53020771,112970.0,112960.0,0.00047997]
[1756140184468,6.53020771,112970.0,112960.0,0.00567997]
[1756140185931,6.53020771,112970.0,112960.0,0.00047997]
[1756140186707,6.53116771,112970.0,112960.0,0.00047997]
[1756140186971,6.56346234,112970.0,112960.0,0.00047997]
[1756140187258,6.66346234,112970.0,112960.0,0.00047997]
[1756140187480,7.4630735,112970.0,112960.0,0.00047997]
[1756140187682,7.48692558,112970.0,112960.0,0.00047997]
[1756140187882,7.4630735,112970.0,112960.0,0.00047997]
[1756140188123,7.43077887,112970.0,112960.0,0.00047997]
[1756140188310,6.61468779,112970.0,112960.0,0.00047997]
[1756140191070,6.61475636,112970.0,112960.0,0.00047997]
[1756140191419,6.61471636,112970.0,112960.0,0.00047997]
[1756140191836,6.614717,112970.0,112960.0,0.00047997]
[1756140192886,6.94429741,112970.0,112960.0,0.00047997]
[1756140193311,6.9461954,112970.0,112960.0,0.00047997]
[1756140193738,6.92422643,112970.0,112960.0,0.00047997]
[1756140193948,0.78450284,112960.0,112950.0,4e-05]
[1756140194181,6.64596334,112960.0,112950.0,0.00018371]
[1756140194397,6.64306427,112960.0,112950.0,0.00018371]
[1756140194610,6.66970427,112960.0,112950.0,0.00018371]
[1756140194812,6.51922427,112960.0,112950.0,0.00018371]
[1756140195017,6.66970427,112960.0,112950.0,0.00018371]
[1756140195237,6.67170427,112960.0,112950.0,0.00018371]
[1756140195452,6.52170427,112960.0,112950.0,0.00018371]
[1756140195665,4.84229534,112960.0,112950.0,0.00228371]
[1756140195880,6.31602772,112960.0,112950.0,0.00538371]
[1756140196098,6.17940887,112960.0,112950.0,0.00538371]
[1756140197012,6.32988887,112960.0,112950.0,0.00538371]
[1756140197257,6.17940887,112960.0,112950.0,0.00538371]
[1756140197464,6.04254953,112960.0,112950.0,0.00538371]
[1756140197679,4.9874713,112960.0,112950.0,0.00538371]
[1756140197912,4.81167546,112960.0,112950.0,0.1824532]
[1756140198373,4.0120643,112960.0,112950.0,0.1824532]
[1756140198594,4.5025443,112960.0,112950.0,0.1824532]
[1756140198815,5.15167546,112960.0,112950.0,0.1824532]
[1756140199303,5.30215546,112960.0,112950.0,0.1824532]
[1756140199506,5.15167546,112960.0,112950.0,0.1824532]
[1756140200127,4.5005443,112960.0,112950.0,0.1824532]
[1756140200338,5.29815546,112960.0,112950.0,0.1834532]
[1756140200554,4.3224243,112960.0,112950.0,0.22651707]
[1756140200808,5.27251637,112960.0,112950.0,0.00638371]
[1756140200982,4.47290521,112960.0,112950.0,0.00638371]
[1756140201191,5.27151637,112960.0,112950.0,0.00638371]
[1756140201395,5.27151773,112960.0,112950.0,0.00638371]
[1756140202189,5.25765658,112960.0,112950.0,0.00638371]
[1756140204126,5.24104716,112960.0,112950.0,0.00638371]
[1756140204338,5.25765786,112960.0,112950.0,0.00638371]
[1756140204579,5.25761786,112960.0,112950.0,0.00638371]
[1756140205315,5.27147724,112960.0,112950.0,0.00638371]
[1756140205533,5.29810924,112960.0,112950.0,0.00638371]
[1756140205765,5.14766924,112960.0,112950.0,0.00638371]
[1756140206005,5.29810924,112960.0,112950.0,0.1834532]
[1756140206525,5.29810924,112960.0,112950.0,0.00638371]
[1756140206956,5.27147724,112960.0,112950.0,0.00638371]
[1756140207437,5.12103724,112960.0,112950.0,0.1834532]
[1756140207655,4.47186608,112960.0,112950.0,0.1834532]
[1756140207876,4.32142608,112960.0,112950.0,0.1834532]
[1756140208109,4.47186608,112960.0,112950.0,0.1834532]
[1756140208575,4.32142608,112960.0,112950.0,0.1834532]
[1756140208790,4.47186608,112960.0,112950.0,0.1834532]
[1756140209418,4.32142608,112960.0,112950.0,0.1834532]
[1756140209649,4.32142608,112960.0,112950.0,0.22661707]
[1756140209870,4.47186608,112960.0,112950.0,0.22661707]
[1756140210092,4.47186608,112960.0,112950.0,0.1834532]
[1756140210533,4.30481538,112960.0,112950.0,0.1834532]
[1756140210780,4.32141726,112960.0,112950.0,0.1834532]
[1756140211216,0.37046126,112960.0,112950.0,0.1834532]
[1756140211431,0.79961116,112980.0,112970.0,0.17703815]
[1756140211654,5.25760474,112980.0,112970.0,0.18223815]
[1756140212105,4.91760474,112980.0,112970.0,0.18223815]
[1756140212400,5.25760474,112980.0,112970.0,0.18223815]
[1756140212624,5.25760474,112980.0,112970.0,0.18123815]
[1756140213268,5.25760474,112980.0,112970.0,0.18423815]
[1756140215106,5.25760474,112980.0,112970.0,0.18523815]
[1756140215957,5.25760474,112980.0,112970.0,0.22146594]
[1756140215958,0.01659758,112980.0,112970.0,0.22146594]
[1756140216198,0.01659758,112980.0,112970.0,0.37186594]
[1756140216417,1.13961116,112980.0,112970.0,0.37186594]
[1756140216622,1.13961116,112980.0,112970.0,0.22146594]
[1756140217049,5.09056716,112980.0,112970.0,0.18523815]
[1756140217252,5.25754615,112980.0,112970.0,0.18523815]
[1756140219889,5.24096716,112980.0,112970.0,0.18523815]
[1756140220149,5.2595211,112980.0,112970.0,0.18003815]
[1756140220364,5.24294716,112980.0,112970.0,0.18205815]
[1756140220578,5.25952234,112980.0,112970.0,0.18205815]
[1756140220796,5.25952234,112980.0,112970.0,0.18523815]
[1756140221447,5.25952234,112980.0,112970.0,0.18103815]
[1756140221669,5.26249234,112980.0,112970.0,0.004]
[1756140222334,5.25952234,112980.0,112970.0,0.004]
[1756140222565,5.26249234,112980.0,112970.0,0.001]
[1756140222809,5.11209234,112980.0,112970.0,0.001]
[1756140223027,4.45789118,112980.0,112970.0,0.18323815]
[1756140223253,5.25750234,112980.0,112970.0,0.18323815]
[1756140223750,5.2596071,112980.0,112970.0,0.001]
[1756140224206,5.2596071,112980.0,112970.0,0.17803815]
[1756140225269,5.2596071,112980.0,112970.0,0.001]
[1756140225486,5.2596071,112980.0,112970.0,0.17803815]
[1756140226183,5.2624671,112980.0,112970.0,0.001]
[1756140226632,6.06207826,112980.0,112970.0,0.001]
[1756140226864,5.34933675,112980.0,112970.0,0.001]
[1756140227069,6.14894791,112980.0,112970.0,0.001]
[1756140227481,6.23910074,112980.0,112970.0,0.001]
[1756140227813,6.25362426,112980.0,112970.0,0.001]
[1756140228022,6.06830257,112980.0,112970.0,0.001]
[1756140228454,5.92338208,112980.0,112970.0,0.001]
[1756140228700,5.27413092,112980.0,112970.0,0.17803815]
[1756140228951,5.11547141,112980.0,112970.0,0.17803815]
[1756140229203,5.11337141,112980.0,112970.0,0.18323815]
[1756140229409,5.2594871,112980.0,112970.0,0.18323815]
[1756140229640,5.1091271,112980.0,112970.0,0.17803815]
[1756140229858,5.25950712,112980.0,112970.0,0.17803815]
[1756140230070,5.25950712,112980.0,112970.0,0.001]
[1756140230488,5.25950753,112980.0,112970.0,0.001]
[1756140230933,6.32301082,112980.0,112970.0,0.001]
[1756140231151,6.34050698,112980.0,112970.0,0.001]
[1756140231362,6.34050711,112980.0,112970.0,0.001]
[1756140231828,6.35963346,112980.0,112970.0,0.001]
[1756140232061,6.09574133,112980.0,112970.0,0.001]
[1756140232242,6.27276381,112980.0,112970.0,0.001]
[1756140232451,6.09574133,112980.0,112970.0,0.001]
[1756140232664,5.94538133,112980.0,112960.0,0.17705348]
[1756140232797,6.04053832,112970.0,112960.0,0.17705348]
[1756140233002,6.05713869,112970.0,112960.0,0.18225348]
[1756140233208,6.05911869,112970.0,112960.0,0.18225348]
[1756140233844,6.05911869,112970.0,112960.0,0.17907382]
[1756140234045,6.05911869,112970.0,112960.0,0.00202]
[1756140234682,6.05911869,112970.0,112950.0,0.33964667]
[1756140234890,5.55017832,112960.0,112950.0,0.18928667]
[1756140235083,5.56677869,112960.0,112950.0,0.19130667]
[1756140235375,5.58063644,112960.0,112950.0,0.19130667]
[1756140235578,5.58063644,112960.0,112950.0,0.25976669]
[1756140236257,5.58063644,112960.0,112950.0,0.26076669]
[1756140236668,5.58063644,112960.0,112950.0,0.19230667]
[1756140236884,5.73100234,112960.0,112950.0,0.19330667]
[1756140237342,5.73096234,112960.0,112950.0,0.19330667]
[1756140237561,5.58064234,112960.0,112950.0,0.19330667]
[1756140237783,6.07294234,112960.0,112950.0,0.1792532]
[1756140239225,6.07294234,112960.0,112950.0,0.00218371]
[1756140239863,6.07294234,112960.0,112950.0,0.1792532]
[1756140240329,5.92262106,112960.0,112950.0,0.1792532]
[1756140240532,6.07294106,112960.0,112950.0,0.1844332]
[1756140240776,6.07294106,112960.0,112950.0,0.1812032]
[1756140241022,6.07294106,112960.0,112950.0,0.00413371]
[1756140241258,6.07294061,112960.0,112950.0,0.1812032]
[1756140241709,6.07294061,112960.0,112950.0,0.00413371]
[1756140241961,6.07294061,112960.0,112950.0,0.00218371]
[1756140242487,6.05908286,112960.0,112950.0,0.00218371]
[1756140243094,6.05908286,112960.0,112950.0,0.1792532]
[1756140243617,5.90876286,112960.0,112950.0,0.1792532]
[1756140243817,6.05908286,112960.0,112950.0,0.1792532]
[1756140244250,5.90876286,112960.0,112950.0,0.1844332]
[1756140244458,5.90678286,112960.0,112950.0,0.1844332]
[1756140244663,5.90678286,112960.0,112950.0,0.23561691]
[1756140244664,5.1071717,112960.0,112950.0,0.23561691]
[1756140244847,5.09056716,112960.0,112950.0,0.23561691]
[1756140245072,5.09056716,112960.0,112950.0,0.1844332]
[1756140246233,5.1044254,112960.0,112950.0,0.1844332]
[1756140247200,5.90403656,112960.0,112950.0,0.1844332]
[1756140247432,5.92063907,112960.0,112950.0,0.1844332]
[1756140248858,5.92064384,112960.0,112950.0,0.1844332]
[1756140249314,6.07096384,112960.0,112950.0,0.1844332]
[1756140249914,6.07299384,112960.0,112950.0,0.1792532]
[1756140250183,6.25296766,112960.0,112950.0,0.00218371]
[1756140250962,6.25296766,112960.0,112950.0,0.00118371]
[1756140250963,6.29176859,112960.0,112950.0,0.00118371]
[1756140251487,6.27791035,112960.0,112950.0,0.00018371]
[1756140252268,6.26278789,112960.0,112950.0,0.00018371]
[1756140252518,6.29122579,112960.0,112950.0,0.00018371]
[1756140252941,6.31786179,112960.0,112950.0,0.00018371]
[1756140253158,6.40573144,112960.0,112950.0,0.00018371]
[1756140253369,6.43730292,112960.0,112950.0,0.00018371]
[1756140253798,6.43830292,112960.0,112950.0,0.00018371]
[1756140254481,7.23791408,112960.0,112950.0,0.00018371]
[1756140254681,7.25177486,112960.0,112950.0,0.00018371]
[1756140255119,7.10145486,112960.0,112950.0,0.00018371]
[1756140255334,6.1301008,112960.0,112950.0,0.00018371]
[1756140256500,6.09748932,112960.0,112950.0,0.00018371]
[1756140256947,6.08919667,112960.0,112950.0,0.00018371]
[1756140257294,5.93891667,112960.0,112950.0,0.00018371]
[1756140257698,6.08923667,112960.0,112950.0,0.00018371]
[1756140258119,6.09753671,112960.0,112950.0,0.00018371]
[1756140258622,6.09752319,112960.0,112950.0,0.00018371]
[1756140258919,5.94720319,112960.0,112950.0,0.00018371]
[1756140259140,6.09752319,112960.0,112950.0,0.00018371]
[1756140261904,6.09752348,112960.0,112950.0,0.00018371]
[1756140262683,6.13009496,112960.0,112950.0,0.00018371]
[1756140262890,7.01657577,112960.0,112950.0,0.00018371]
[1756140263766,7.05766767,112960.0,112950.0,0.00018371]
[1756140264160,7.15766767,112960.0,112950.0,0.00018371]
[1756140264913,7.15566767,112960.0,112950.0,0.00018371]
[1756140265705,7.15766767,112960.0,112950.0,0.00018371]
[1756140266137,7.30566767,112960.0,112950.0,0.00018371]
[1756140266349,7.30766767,112960.0,112950.0,0.00018371]
[1756140266554,7.29180689,112960.0,112950.0,0.00018371]
[1756140266752,7.31571954,112960.0,112950.0,0.00018371]
[1756140267005,7.16939954,112960.0,112950.0,0.00018371]
[1756140267215,7.31967954,112960.0,112950.0,0.00018371]
[1756140267586,7.32567954,112960.0,112950.0,0.00018371]
[1756140267822,7.30371057,112960.0,112950.0,0.00018371]
[1756140268023,7.30271057,112960.0,112950.0,0.00018371]
[1756140268226,7.29440685,112960.0,112950.0,0.00018371]
[1756140268436,7.29738513,112960.0,112950.0,0.00018371]
[1756140268654,7.20758548,112960.0,112950.0,0.00018371]
[1756140268858,7.21050548,112960.0,112950.0,0.00018371]
[1756140269247,7.21050496,112960.0,112950.0,0.00018371]
[1756140269422,7.06022496,112960.0,112950.0,0.00018371]
[1756140269627,7.29737461,112960.0,112950.0,0.00018371]
[1756140270264,7.16095662,112960.0,112950.0,0.00018371]
[1756140270462,7.27574514,112960.0,112950.0,0.00018371]
[1756140270784,7.27866514,112960.0,112950.0,0.00018371]
[1756140270967,7.12838514,112960.0,112950.0,0.00018371]
[1756140271329,7.27866514,112960.0,112950.0,0.00018371]
[1756140272784,7.31139216,112960.0,112950.0,0.00018371]
[1756140273210,7.29753015,112960.0,112950.0,0.00018371]
[1756140273428,6.12540232,112960.0,112950.0,0.00542371]
[1756140273647,5.9556433,112960.0,112950.0,0.00542371]
[1756140273864,6.1059233,112960.0,112950.0,0.00542371]
[1756140274090,5.7659233,112960.0,112950.0,0.00542371]
[1756140274302,5.43658948,112960.0,112950.0,0.00542371]
[1756140274522,5.91619557,112960.0,112950.0,0.00542371]
[1756140274740,6.0869519,112960.0,112950.0,0.00642371]
[1756140274954,6.09524728,112960.0,112950.0,0.00642371]
[1756140275172,6.09324728,112960.0,112950.0,0.00642371]
[1756140275622,6.12609362,112960.0,112950.0,0.00642371]
[1756140275840,6.09424728,112960.0,112950.0,0.00642371]
[1756140276491,6.10810791,112960.0,112950.0,0.00642371]
[1756140276715,5.57360507,112960.0,112950.0,0.00642371]
[1756140276932,5.75065889,112960.0,112950.0,0.00642371]
[1756140277150,6.09065889,112960.0,112950.0,0.00642371]
[1756140277447,6.06402289,112960.0,112950.0,0.00642371]
[1756140277657,5.88596907,112960.0,112950.0,0.00542371]
[1756140277872,6.08965689,112960.0,112950.0,0.00642371]
[1756140278089,5.91262286,112960.0,112950.0,0.00642371]
[1756140278725,4.31340054,112960.0,112950.0,0.00642371]
[1756140278943,5.88599113,112960.0,112950.0,0.1834932]
[1756140279160,5.73571113,112960.0,112950.0,0.1834932]
[1756140279378,5.88599113,112960.0,112950.0,0.1834932]
[1756140279827,5.88599113,112960.0,112950.0,0.00642371]
[1756140280730,6.08418151,112960.0,112950.0,0.00118371]
[1756140280971,6.11690853,112960.0,112950.0,0.00118371]
[1756140281492,5.90512769,112960.0,112950.0,0.00642371]
[1756140281719,5.88599113,112960.0,112950.0,0.00642371]
[1756140282157,5.73571113,112960.0,112950.0,0.00642371]
[1756140282369,4.13648881,112960.0,112950.0,0.00642371]
[1756140282587,5.88599113,112960.0,112950.0,0.00642371]
[1756140283365,6.06304495,112960.0,112950.0,0.00642371]
[1756140284067,5.88599113,112960.0,112950.0,0.00642371]
[1756140284299,6.06304495,112960.0,112950.0,0.00642371]
[1756140285570,5.88599113,112960.0,112950.0,0.00642371]
[1756140285770,3.79026129,112960.0,112950.0,0.1834932]
[1756140286011,4.58156909,112960.0,112950.0,0.29065262]
[1756140286139,4.92156909,112960.0,112950.0,0.29065262]
[1756140286337,4.58156909,112960.0,112950.0,0.29065262]
[1756140286548,4.56770846,112960.0,112950.0,0.28965262]
[1756140286953,4.56770846,112960.0,112950.0,0.29065262]
[1756140287327,4.90770846,112960.0,112950.0,0.29165262]
[1756140287741,4.90770221,112960.0,112950.0,0.29165262]
[1756140288174,4.90770221,112960.0,112950.0,0.29065262]
[1756140288390,4.90770221,112960.0,112950.0,0.28965262]
[1756140288570,4.89110433,112960.0,112950.0,0.29365262]
[1756140289037,4.89110433,112960.0,112950.0,0.32027962]
[1756140289251,5.85754749,112960.0,112950.0,0.24917799]
[1756140289441,5.05418958,112960.0,112950.0,0.22255099]
[1756140289841,4.2721831,112960.0,112950.0,0.22255099]
[1756140290063,5.05418976,112960.0,112950.0,0.22255099]
[1756140290262,5.05418976,112960.0,112950.0,0.22455099]
[1756140291647,5.05616976,112960.0,112950.0,0.1884932]
[1756140291894,5.05418976,112960.0,112950.0,0.1884932]
[1756140292035,5.04033183,112960.0,112950.0,0.1884932]
[1756140295366,5.0541899,112960.0,112950.0,0.1884932]
[1756140295787,5.0561699,112960.0,112950.0,0.1852732]
[1756140296206,5.0561699,112960.0,112950.0,0.1882832]
[1756140296899,5.0541899,112960.0,112950.0,0.1882832]
[1756140297530,5.05418783,112960.0,112950.0,0.1882832]
[1756140297745,5.03759772,112960.0,112950.0,0.1882832]
[1756140297956,5.05616783,112960.0,112950.0,0.1852732]
[1756140298528,5.05616783,112960.0,112950.0,0.1882832]
[1756140299333,5.05616783,112960.0,112950.0,0.00618371]
[1756140299535,5.83817431,112960.0,112950.0,0.00618371]
[1756140299876,5.05616783,112960.0,112950.0,0.00618371]
[1756140300318,5.84114431,112960.0,112950.0,0.00618371]
[1756140300714,5.83813431,112960.0,112950.0,0.00618371]
[1756140301135,5.84110431,112960.0,112950.0,0.00618371]
[1756140301367,5.69090431,112960.0,112950.0,0.00618371]
[1756140301543,5.83813431,112960.0,112950.0,0.00618371]
[1756140301926,5.83813431,112960.0,112950.0,0.00218371]
[1756140302741,5.83813431,112960.0,112950.0,0.00318371]
[1756140303088,5.67407624,112960.0,112950.0,0.00318371]
[1756140303303,5.82427624,112960.0,112950.0,0.00318371]
[1756140303506,5.04024976,112960.0,112950.0,0.1852532]
[1756140303726,5.04024976,112960.0,112950.0,0.22148699]
[1756140304199,4.89008976,112960.0,112950.0,0.37164699]
[1756140304415,4.55008976,112960.0,112950.0,0.37164699]
[1756140304630,1.15519176,112960.0,112950.0,0.37164699]
[1756140304851,1.13860165,112960.0,112950.0,0.39827299]
[1756140305280,0.35659517,112960.0,112950.0,0.39827299]
[1756140305493,1.13860165,112960.0,112950.0,0.39827299]
[1756140306133,1.15245926,112960.0,112950.0,0.39827299]
[1756140306572,0.37045278,112960.0,112950.0,0.39827299]
[1756140306983,0.37045278,112960.0,112950.0,0.39527299]
[1756140307388,0.37045278,112960.0,112950.0,0.39627299]
[1756140308053,0.37045278,112960.0,112950.0,0.39727299]
[1756140308649,1.15245926,112960.0,112950.0,0.39727299]
[1756140309099,1.15245926,112960.0,112950.0,0.39627299]
[1756140309294,1.15245926,112960.0,112950.0,0.24611299]
[1756140309295,1.17096833,112960.0,112950.0,0.24611299]
[1756140309496,1.17096833,112960.0,112950.0,0.24811299]
[1756140309703,1.97148388,112960.0,112950.0,0.39827299]
[1756140309906,1.17096833,112960.0,112950.0,0.39827299]
[1756140310317,0.37045278,112960.0,112950.0,0.39827299]
[1756140310522,1.17096833,112960.0,112950.0,0.39827299]
[1756140311411,0.37045278,112960.0,112950.0,0.39827299]
[1756140311741,0.35659517,112960.0,112950.0,0.39827299]
[1756140311969,0.01659517,112960.0,112950.0,0.39827299]
[1756140312193,0.01659517,112960.0,112950.0,0.48515774]
[1756140312404,0.01659517,112960.0,112950.0,0.50260676]
[1756140313185,1e-08,112960.0,112950.0,1.30112231]
[1756140313403,1.14051555,112990.0,112980.0,0.17702248]
[1756140313605,4.87541355,112990.0,112980.0,0.36758713]
[1756140313838,1.14051555,112990.0,112980.0,0.36758713]
[1756140314652,1.14051555,112990.0,112980.0,0.39420713]
[1756140314857,0.34,112990.0,112980.0,0.39420713]
[1756140315064,1.14051555,112990.0,112980.0,0.39420713]
[1756140315270,1.15436945,112990.0,112980.0,0.39420713]
[1756140315513,0.0138539,112990.0,112980.0,0.39420713]
[1756140315739,0.0138539,112990.0,112980.0,0.39416713]
[1756140316177,0.0138539,112990.0,112980.0,0.24404713]
[1756140316379,0.0138539,112990.0,112980.0,0.39516713]
[1756140316818,0.0138539,112990.0,112980.0,0.24604713]
[1756140317022,0.0138539,112990.0,112980.0,0.39616713]
[1756140319677,0.0138539,112990.0,112980.0,0.24604713]
[1756140319897,0.0138539,112990.0,112980.0,0.39616713]
[1756140322052,0.0138539,112990.0,112980.0,0.39612713]
[1756140322700,0.0138539,112990.0,112980.0,0.48301188]
[1756140323538,0.0138539,112990.0,112980.0,0.33293188]
[1756140323990,0.0138539,112990.0,112980.0,0.48301188]
[1756140325121,0.0138539,112990.0,112980.0,0.88301188]
[1756140325610,1.14815072,113000.0,112990.0,0.17700681]
[1756140325827,0.36681917,113000.0,112990.0,0.18600374]
[1756140326049,0.36681917,113000.0,112990.0,0.33608374]
[1756140326262,0.36681917,113000.0,112990.0,0.34126374]
[1756140326702,0.36681917,113000.0,112990.0,0.36787974]
[1756140326919,0.36729932,113000.0,112990.0,0.36787974]
[1756140327142,1.14863087,113000.0,112990.0,0.36787974]
[1756140327594,0.02729932,113000.0,112990.0,0.36787974]
[1756140328281,0.00048015,113000.0,112990.0,0.36787974]
[1756140328732,0.01433163,113000.0,112990.0,0.36787974]
[1756140328962,0.01433163,113000.0,112990.0,0.47221351]
[1756140329204,0.01433163,113000.0,112990.0,0.47321351]
[1756140329646,0.01433163,113000.0,112990.0,0.47221351]
[1756140329870,0.01433163,113000.0,112990.0,0.87221351]
[1756140330092,0.01433163,113000.0,112990.0,0.87417351]
[1756140330320,0.01433163,113000.0,112990.0,0.87517351]
[1756140330570,0.01433163,113000.0,112990.0,0.87417351]
[1756140331004,0.01433163,113000.0,112990.0,0.87717351]